fUSD/lending_fUSD_20240409
["ID","MTS","AMOUNT","RATE_DAILY","PERIOD"]
[321963721,1712652643304,-1204.14,0.00020821,2]
[321963724,1712652643313,-500.0,0.00020821,2]
[321963727,1712652643322,-1564.11,0.00020821,2]
[321963730,1712652643331,-500.0,0.00020821,2]
[321963733,1712652643340,-1865.26,0.00020821,2]
[321963736,1712652643349,-532.44,0.00020821,2]
[321963739,1712652643359,-1354.08,0.00020821,2]
[321963741,1712652643368,-500.0,0.00020821,2]
[321963743,1712652643380,-500.0,0.00020821,2]
[321963745,1712652643389,-500.0,0.00020821,2]
[321963747,1712652643400,-773.52,0.00020821,2]
[321963749,1712652643409,-500.0,0.00020821,2]
[321963751,1712652643419,-1544.89,0.00020821,2]
[321963753,1712652643428,-2.97697938,0.00020821,2]
[321963757,1712652643455,-497.02302062,0.00020821,2]
[321963759,1712652643464,-500.0,0.00020821,2]
[321963761,1712652643475,-500.0,0.00020821,2]
[321963763,1712652643484,-257.02697938,0.00020821,2]
[321963767,1712652643516,-282.30302062,0.00020821,2]
[321963769,1712652643526,-513.65176448,0.00020821,2]
[321963771,1712652643535,-554.4727869,0.00020821,2]
[321963775,1712652643562,-302.0,0.00020821,2]
[321963777,1712652643574,-510.41115877,0.00020821,2]
[321963846,1712652644648,-242.94605433,0.00020821,2]
[321963847,1712652644658,-586.64711495,0.00020821,2]
[321963848,1712652644667,-1235.97,0.00020821,2]
[321963849,1712652644677,-1007.24653941,0.00020821,2]
[321963850,1712652644710,-36.44346059,0.00020821,2]
[321963851,1712652644719,-1200.61,0.00020821,2]
[321963852,1712652644729,-516.42,0.00020821,2]
[321963853,1712652644739,-548.95605416,0.00020821,2]
[321963854,1712652644748,-500.0,0.00020821,2]
[321963855,1712652644757,-1176.01,0.00020821,2]
[321963856,1712652644769,-500.0,0.00020821,2]
[321963857,1712652644779,-500.0,0.00020821,2]
[321963858,1712652644789,-799.22,0.00020821,2]
[321963859,1712652644798,-1425.15,0.00020821,2]
[321963860,1712652644808,-500.0,0.00020821,2]
[321963861,1712652644817,-500.0,0.00020821,2]
[321963862,1712652644827,-1226.6,0.00020821,2]
[321963863,1712652644836,-900.65,0.00020821,2]
[321963864,1712652644845,-500.0,0.00020821,2]
[321963865,1712652644855,-500.0,0.00020821,2]
[321963866,1712652644864,-1315.97,0.00020821,2]
[321963867,1712652644874,-2512.89,0.00020821,2]
[321963868,1712652644884,-500.0,0.00020821,2]
[321963869,1712652644893,-1361.54,0.00020821,2]
[321963870,1712652644903,-881.2,0.00020821,2]
[321963871,1712652644912,-500.0,0.00020821,2]
[321963872,1712652644921,-500.0,0.00020821,2]
[321963873,1712652644930,-1006.73,0.00020821,2]
[321963874,1712652644939,-500.0,0.00020821,2]
[321963875,1712652644948,-1229.89,0.00020821,2]
[321963876,1712652644957,-500.0,0.00020821,2]
[321963877,1712652644966,-983.65,0.00020821,2]
[321963878,1712652644975,-559.91462116,0.00020821,2]
[321963879,1712652644984,-1133.34,0.00020821,2]
[321963880,1712652644993,-500.0,0.00020821,2]
[321963881,1712652645003,-1351.78,0.00020821,2]
[321963882,1712652645013,-500.0,0.00020821,2]
[321963883,1712652645024,-3904.56,0.00020821,2]
[321963884,1712652645033,-608.09,0.00020821,2]
[321963885,1712652645042,-1128.45,0.00020821,2]
[321963886,1712652645051,-500.0,0.00020821,2]
[321963887,1712652645061,-500.0,0.00020821,2]
[321963888,1712652645070,-551.31,0.00020821,2]
[321963889,1712652645079,-500.0,0.00020821,2]
[321963890,1712652645089,-1953.17,0.00020821,2]
[321963891,1712652645099,-2204.97,0.00020821,2]
[321963892,1712652645108,-430.1990209,0.00020821,2]
[321963893,1712652645117,-1713.96,0.00020821,2]
[321963894,1712652645126,-500.0,0.00020821,2]
[321963895,1712652645136,-500.0,0.00020821,2]
[321963896,1712652645144,-500.0,0.00020821,2]
[321963897,1712652645154,-500.0,0.00020821,2]
[321963898,1712652645163,-500.0,0.00020821,2]
[321963899,1712652645172,-500.0,0.00020821,2]
[321963900,1712652645181,-1249.74,0.00020821,2]
[321963901,1712652645191,-920.86,0.00020821,2]
[321963903,1712652645200,-500.0,0.00020821,2]
[321963905,1712652645209,-500.0,0.00020821,2]
[321963906,1712652645218,-500.0,0.00020821,2]
[321963909,1712652645227,-901.41,0.00020821,2]
[321963912,1712652645240,-500.0,0.00020821,2]
[321963913,1712652645290,-559.1,0.00020821,2]
[321963916,1712652645300,-976.15,0.00020821,2]
[321963918,1712652645310,-500.0,0.00020821,2]
[321963919,1712652645320,-500.0,0.00020821,2]
[321963921,1712652645330,-673.67,0.00020821,2]
[321963922,1712652645341,-500.0,0.00020821,2]
[321963923,1712652645351,-299.76697552,0.00020821,2]
[321963924,1712652645362,-500.0,0.00020821,2]
[321963925,1712652645373,-309.65175607,0.00020821,2]
[321963926,1712652645383,-500.0,0.00020821,2]
[321963927,1712652645393,-545.67084968,0.00020821,2]
[321963928,1712652645403,-765.2,0.00020821,2]
[321963929,1712652645413,-500.0,0.00020821,2]
[321963930,1712652645424,-501.48300233,0.00020821,2]
[321963931,1712652645434,-500.0,0.00020821,2]
[321963932,1712652645445,-500.0,0.00020821,2]
[321963933,1712652645455,-1203.76,0.00020821,2]
[321963934,1712652645465,-500.0,0.00020821,2]
[321963935,1712652645476,-500.0,0.00020821,2]
[321963936,1712652645486,-500.0,0.00020821,2]
[321963937,1712652645498,-2034.87,0.00020821,2]
[321963938,1712652645507,-817.25,0.00020821,2]
[321963939,1712652645517,-500.0,0.00020821,2]
[321963940,1712652645528,-972.89,0.00020821,2]
[321963941,1712652645539,-523.51,0.00020821,2]
[321963942,1712652645550,-500.0,0.00020821,2]
[321963943,1712652645561,-556.26,0.00020821,2]
[321963944,1712652645571,-500.0,0.00020821,2]
[321963945,1712652645582,-617.29,0.00020821,2]
[321963946,1712652645591,-500.0,0.00020821,2]
[321963947,1712652645601,-500.0,0.00020821,2]
[321963948,1712652645611,-1281.46,0.00020821,2]
[321963949,1712652645620,-707.18,0.00020821,2]
[321963950,1712652645630,-1956.48,0.00020821,2]
[321963951,1712652645639,-610.48,0.00020821,2]
[321963952,1712652645648,-500.0,0.00020821,2]
[321963953,1712652645660,-500.0,0.00020821,2]
[321963954,1712652645669,-1172.5,0.00020821,2]
[321963955,1712652645679,-500.0,0.00020821,2]
[321963956,1712652645688,-387.35662083,0.00020821,2]
[321963957,1712652645699,-942.78,0.00020821,2]
[321963958,1712652645708,-531.0,0.00020821,2]
[321963959,1712652645717,-800.26,0.00020821,2]
[321963960,1712652645726,-500.0,0.00020821,2]
[321963961,1712652645735,-500.0,0.00020821,2]
[321963962,1712652645744,-500.0,0.00020821,2]
[321963963,1712652645753,-2580.45,0.00020821,2]
[321963964,1712652645764,-633.82404482,0.00020821,2]
[321963965,1712652645773,-500.0,0.00020821,2]
[321963966,1712652645781,-853.95,0.00020821,2]
[321963967,1712652645790,-1241.66,0.00020821,2]
[321963968,1712652645800,-500.0,0.00020821,2]
[321963986,1712652646033,-567.43,0.00020821,2]
[321963989,1712652646042,-1206.87,0.00020821,2]
[321963991,1712652646052,-2378.19,0.00020821,2]
[321963994,1712652646061,-500.0,0.00020821,2]
[321963997,1712652646070,-500.0,0.00020821,2]
[321963999,1712652646079,-500.0,0.00020821,2]
[321964001,1712652646088,-500.0,0.00020821,2]
[321964003,1712652646097,-500.0,0.00020821,2]
[321964005,1712652646106,-500.0,0.00020821,2]
[321964006,1712652646115,-1721.97,0.00020821,2]
[321964008,1712652646124,-3212.98,0.00020821,2]
[321964009,1712652646133,-500.0,0.00020821,2]
[321964011,1712652646142,-150.0,0.00020821,2]
[321964013,1712652646151,-1541.29,0.00020821,2]
[321964015,1712652646161,-833.64,0.00020821,2]
[321964016,1712652646170,-500.0,0.00020821,2]
[321964017,1712652646178,-1010.8,0.00020821,2]
[321964018,1712652646188,-1281.86,0.00020821,2]
[321964019,1712652646197,-1012.78,0.00020821,2]
[321964020,1712652646206,-500.0,0.00020821,2]
[321964022,1712652646215,-500.0,0.00020821,2]
[321964023,1712652646223,-500.0,0.00020821,2]
[321964025,1712652646232,-1781.57,0.00020821,2]
[321964027,1712652646241,-552.51,0.00020821,2]
[321964029,1712652646250,-500.0,0.00020821,2]
[321964031,1712652646259,-500.0,0.00020821,2]
[321964032,1712652646270,-677.02,0.00020821,2]
[321964033,1712652646279,-500.0,0.00020821,2]
[321964034,1712652646288,-7453.95,0.00020821,2]
[321964035,1712652646297,-669.13,0.00020821,2]
[321964036,1712652646307,-500.0,0.00020821,2]
[321964037,1712652646317,-1546.58,0.00020821,2]
[321964038,1712652646326,-500.0,0.00020821,2]
[321964039,1712652646335,-6352.9,0.00020821,2]
[321964040,1712652646346,-500.0,0.00020821,2]
[321964041,1712652646355,-4876.13,0.00020821,2]
[321964042,1712652646363,-500.0,0.00020821,2]
[321964043,1712652646373,-500.0,0.00020821,2]
[321964044,1712652646383,-1481.6,0.00020821,2]
[321964045,1712652646393,-1054.33,0.00020821,2]
[321964046,1712652646402,-767.57,0.00020821,2]
[321964047,1712652646412,-500.0,0.00020821,2]
[321964048,1712652646421,-500.0,0.00020821,2]
[321964049,1712652646431,-1154.09,0.00020821,2]
[321964050,1712652646440,-12390.35,0.00020821,2]
[321964051,1712652646449,-518.0,0.00020821,2]
[321964052,1712652646458,-586.28,0.00020821,2]
[321964053,1712652646468,-500.0,0.00020821,2]
[321964054,1712652646480,-2626.85,0.00020821,2]
[321964055,1712652646489,-500.0,0.00020821,2]
[321964056,1712652646499,-1621.83,0.00020821,2]
[321964057,1712652646508,-1035.98,0.00020821,2]
[321964058,1712652646520,-636.48110496,0.00020821,2]
[321964059,1712652646529,-500.0,0.00020821,2]
[321964060,1712652646539,-586.4653424,0.00020821,2]
[321964061,1712652646549,-10024.73,0.00020821,2]
[321964062,1712652646559,-500.0,0.00020821,2]
[321964063,1712652646569,-7004.05,0.00020821,2]
[321964064,1712652646579,-500.0,0.00020821,2]
[321964065,1712652646588,-500.0,0.00020821,2]
[321964066,1712652646597,-500.0,0.00020821,2]
[321964067,1712652646607,-500.0,0.00020821,2]
[321964068,1712652646617,-4637.67,0.00020821,2]
[321964069,1712652646627,-511.4,0.00020821,2]
[321964070,1712652646637,-500.0,0.00020821,2]
[321964071,1712652646646,-1582.77,0.00020821,2]
[321964072,1712652646656,-1431.26,0.00020821,2]
[321964073,1712652646666,-4667.8,0.00020821,2]
[321964074,1712652646676,-743.98,0.00020821,2]
[321964075,1712652646686,-500.0,0.00020821,2]
[321964076,1712652646696,-2418.98,0.00020821,2]
[321964077,1712652646705,-3004.3,0.00020821,2]
[321964078,1712652646718,-601.74,0.00020821,2]
[321964079,1712652646730,-17221.87,0.00020821,2]
[321964080,1712652646739,-647.5,0.00020821,2]
[321964081,1712652646750,-672.98,0.00020821,2]
[321964082,1712652646760,-2685.91,0.00020821,2]
[321964083,1712652646770,-482.83549257,0.00020821,2]
[321964084,1712652646778,-500.0,0.00020821,2]
[321964085,1712652646788,-2043.43,0.00020821,2]
[321964086,1712652646799,-500.0,0.00020821,2]
[321964087,1712652646809,-583.46,0.00020821,2]
[321964088,1712652646820,-151.40978318,0.00020821,2]
[321964089,1712652646830,-1622.97,0.00020821,2]
[321964090,1712652646840,-500.0,0.00020821,2]
[321964091,1712652646850,-500.0,0.00020821,2]
[321964092,1712652646862,-44083.35,0.00020821,2]
[321964093,1712652646871,-10524.34,0.00020821,2]
[321964094,1712652646882,-500.0,0.00020821,2]
[321964095,1712652646895,-2844.52,0.00020821,2]
[321964096,1712652646904,-1296.6,0.00020821,2]
[321964097,1712652646914,-1102.43,0.00020821,2]
[321964098,1712652646924,-1055.5,0.00020821,2]
[321964099,1712652646934,-2641.72,0.00020821,2]
[321964100,1712652646945,-500.0,0.00020821,2]
[321964101,1712652646955,-500.0,0.00020821,2]
[321964102,1712652646966,-764.63,0.00020821,2]
[321964103,1712652646975,-1808.34,0.00020821,2]
[321964104,1712652646985,-500.0,0.00020821,2]
[321964105,1712652646995,-2886.08,0.00020821,2]
[321964106,1712652647005,-5154.8,0.00020821,2]
[321964107,1712652647017,-500.0,0.00020821,2]
[321964108,1712652647027,-5139.96,0.00020821,2]
[321964109,1712652647037,-1628.61,0.00020821,2]
[321964110,1712652647046,-500.0,0.00020821,2]
[321964111,1712652647057,-5822.78,0.00020821,2]
[321964112,1712652647067,-500.0,0.00020821,2]
[321964113,1712652647076,-6021.43,0.00020821,2]
[321964114,1712652647086,-500.0,0.00020821,2]
[321964115,1712652647096,-500.0,0.00020821,2]
[321964116,1712652647105,-500.0,0.00020821,2]
[321964117,1712652647114,-2668.06,0.00020821,2]
[321964118,1712652647123,-500.0,0.00020821,2]
[321964119,1712652647136,-500.0,0.00020821,2]
[321964120,1712652647145,-500.0,0.00020821,2]
[321964121,1712652647156,-500.0,0.00020821,2]
[321964122,1712652647165,-500.0,0.00020821,2]
[321964123,1712652647174,-731.16,0.00020821,2]
[321964124,1712652647187,-1011.59,0.00020821,2]
[321964125,1712652647196,-1022.35,0.00020821,2]
[321964126,1712652647207,-500.0,0.00020821,2]
[321964127,1712652647216,-500.0,0.00020821,2]
[321964128,1712652647226,-2078.95,0.00020821,2]
[321964129,1712652647235,-6446.08,0.00020821,2]
[321964130,1712652647244,-500.0,0.00020821,2]
[321964131,1712652647253,-721.34,0.00020821,2]
[321964132,1712652647264,-2328.46,0.00020821,2]
[321964133,1712652647273,-6269.97,0.00020821,2]
[321964134,1712652647283,-500.0,0.00020821,2]
[321964135,1712652647294,-218.8237343,0.00020821,2]
[321964136,1712652647303,-500.0,0.00020821,2]
[321964137,1712652647313,-470.18211836,0.00020821,2]
[321964138,1712652647322,-3023.2,0.00020821,2]
[321964139,1712652647331,-3594.6,0.00020821,2]
[321964140,1712652647340,-500.0,0.00020821,2]
[321964141,1712652647350,-500.0,0.00020821,2]
[321964142,1712652647359,-743.32,0.00020821,2]
[321964143,1712652647369,-1054.35,0.00020821,2]
[321964144,1712652647379,-23974.39,0.00020821,2]
[321964145,1712652647387,-500.0,0.00020821,2]
[321964146,1712652647397,-642.13164021,0.00020821,2]
[321964147,1712652647407,-5205.45,0.00020821,2]
[321964148,1712652647416,-500.0,0.00020821,2]
[321964149,1712652647426,-500.0,0.00020821,2]
[321964150,1712652647435,-500.0,0.00020821,2]
[321964151,1712652647444,-1059.12,0.00020821,2]
[321964152,1712652647453,-742.3,0.00020821,2]
[321964153,1712652647463,-500.0,0.00020821,2]
[321964154,1712652647473,-15059.48,0.00020821,2]
[321964155,1712652647483,-2014.77,0.00020821,2]
[321964156,1712652647495,-3629.36,0.00020821,2]
[321964157,1712652647504,-325.12647058,0.00020821,2]
[321964158,1712652647514,-606.79,0.00020821,2]
[321964159,1712652647525,-500.0,0.00020821,2]
[321964160,1712652647535,-500.0,0.00020821,2]
[321964161,1712652647544,-500.0,0.00020821,2]
[321964162,1712652647554,-3412.96,0.00020821,2]
[321964163,1712652647563,-923.21,0.00020821,2]
[321964164,1712652647573,-4019.94,0.00020821,2]
[321964165,1712652647582,-10321.97,0.00020821,2]
[321964166,1712652647591,-1124.83,0.00020821,2]
[321964167,1712652647600,-500.0,0.00020821,2]
[321964168,1712652647610,-732.03,0.00020821,2]
[321964169,1712652647619,-749.93,0.00020821,2]
[321964170,1712652647628,-573.15,0.00020821,2]
[321964171,1712652647637,-691.44,0.00020821,2]
[321964172,1712652647646,-632.65,0.00020821,2]
[321964173,1712652647656,-500.0,0.00020821,2]
[321964174,1712652647665,-2521.53,0.00020821,2]
[321964175,1712652647674,-500.0,0.00020821,2]
[321964176,1712652647683,-3230.91,0.00020821,2]
[321964177,1712652647692,-3454.06,0.00020821,2]
[321964178,1712652647701,-3230.99,0.00020821,2]
[321964179,1712652647710,-19408.74,0.00020821,2]
[321964180,1712652647719,-500.0,0.00020821,2]
[321964181,1712652647728,-500.0,0.00020821,2]
[321964182,1712652647738,-2269.55,0.00020821,2]
[321964183,1712652647747,-1605.06,0.00020821,2]
[321964184,1712652647756,-500.0,0.00020821,2]
[321964185,1712652647765,-500.0,0.00020821,2]
[321964186,1712652647774,-500.0,0.00020821,2]
[321964187,1712652647784,-831.85,0.00020821,2]
[321964188,1712652647794,-1753.82,0.00020821,2]
[321964189,1712652647804,-2640.42,0.00020821,2]
[321964190,1712652647815,-586.53,0.00020821,2]
[321964191,1712652647825,-500.0,0.00020821,2]
[321964192,1712652647837,-641.84,0.00020821,2]
[321964193,1712652647847,-3421.04,0.00020821,2]
[321964194,1712652647857,-1437.95,0.00020821,2]
[321964195,1712652647868,-500.0,0.00020821,2]
[321964196,1712652647877,-500.0,0.00020821,2]
[321964197,1712652647887,-4511.99,0.00020821,2]
[321964198,1712652647897,-675.77,0.00020821,2]
[321964199,1712652647907,-3709.01,0.00020821,2]
[321964200,1712652647917,-5721.93,0.00020821,2]
[321964201,1712652647926,-500.0,0.00020821,2]
[321964202,1712652647936,-544.18,0.00020821,2]
[321964203,1712652647945,-641.51,0.00020821,2]
[321964204,1712652647954,-2967.03,0.00020821,2]
[321964205,1712652647964,-500.0,0.00020821,2]
[321964206,1712652647973,-500.0,0.00020821,2]
[321964207,1712652647983,-839.56,0.00020821,2]
[321964208,1712652647993,-500.0,0.00020821,2]
[321964209,1712652648005,-4093.05,0.00020821,2]
[321964210,1712652648016,-8613.52,0.00020821,2]
[321964211,1712652648026,-500.0,0.00020821,2]
[321964212,1712652648035,-574.37,0.00020821,2]
[321964213,1712652648045,-500.0,0.00020821,2]
[321964214,1712652648054,-1240.66,0.00020821,2]
[321964215,1712652648063,-16812.41,0.00020821,2]
[321964216,1712652648072,-3807.87,0.00020821,2]
[321964217,1712652648081,-500.0,0.00020821,2]
[321964218,1712652648090,-500.0,0.00020821,2]
[321964219,1712652648100,-500.0,0.00020821,2]
[321964220,1712652648109,-500.0,0.00020821,2]
[321964221,1712652648119,-500.0,0.00020821,2]
[321964222,1712652648128,-1241.58,0.00020821,2]
[321964223,1712652648137,-500.0,0.00020821,2]
[321964224,1712652648146,-8700.86,0.00020821,2]
[321964225,1712652648157,-1802.2,0.00020821,2]
[321964226,1712652648166,-8817.98,0.00020821,2]
[321964227,1712652648177,-887.13,0.00020821,2]
[321964228,1712652648188,-500.0,0.00020821,2]
[321964229,1712652648198,-1507.4,0.00020821,2]
[321964230,1712652648210,-2799.23,0.00020821,2]
[321964231,1712652648220,-975.97,0.00020821,2]
[321964232,1712652648230,-500.0,0.00020821,2]
[321964233,1712652648240,-41888.18,0.00020821,2]
[321964234,1712652648249,-500.0,0.00020821,2]
[321964235,1712652648258,-500.0,0.00020821,2]
[321964236,1712652648269,-233.07161409,0.00020821,2]
[321964237,1712652648278,-500.0,0.00020821,2]
[321964238,1712652648287,-650.25,0.00020821,2]
[321964239,1712652648297,-4088.99,0.00020821,2]
[321964240,1712652648306,-500.0,0.00020821,2]
[321964241,1712652648315,-4714.76,0.00020821,2]
[321964242,1712652648324,-500.0,0.00020821,2]
[321964243,1712652648333,-530.97,0.00020821,2]
[321964244,1712652648342,-4364.33,0.00020821,2]
[321964245,1712652648352,-6695.84,0.00020821,2]
[321964246,1712652648361,-500.0,0.00020821,2]
[321964247,1712652648370,-1356.26,0.00020821,2]
[321964248,1712652648380,-6605.8,0.00020821,2]
[321964249,1712652648390,-574.71,0.00020821,2]
[321964250,1712652648401,-500.0,0.00020821,2]
[321964251,1712652648410,-1684.01,0.00020821,2]
[321964252,1712652648419,-50397.89,0.00020821,2]
[321964253,1712652648428,-500.0,0.00020821,2]
[321964254,1712652648440,-300.0,0.00020821,2]
[321964255,1712652648449,-500.0,0.00020821,2]
[321964256,1712652648459,-3812.99,0.00020821,2]
[321964257,1712652648469,-500.0,0.00020821,2]
[321964258,1712652648483,-2018.97,0.00020821,2]
[321964259,1712652648493,-150.0,0.00020821,2]
[321964260,1712652648502,-2871.2,0.00020821,2]
[321964261,1712652648512,-9914.84,0.00020821,2]
[321964262,1712652648523,-807.95,0.00020821,2]
[321964263,1712652648532,-500.0,0.00020821,2]
[321964264,1712652648541,-1618.05,0.00020821,2]
[321964265,1712652648550,-3001.1,0.00020821,2]
[321964266,1712652648560,-500.0,0.00020821,2]
[321964267,1712652648570,-500.0,0.00020821,2]
[321964268,1712652648579,-500.0,0.00020821,2]
[321964269,1712652648589,-500.0,0.00020821,2]
[321964270,1712652648600,-732.2,0.00020821,2]
[321964271,1712652648609,-500.0,0.00020821,2]
[321964272,1712652648619,-500.0,0.00020821,2]
[321964273,1712652648630,-4513.85,0.00020821,2]
[321964274,1712652648640,-833.04,0.00020821,2]
[321964275,1712652648650,-500.0,0.00020821,2]
[321964276,1712652648659,-550.49876239,0.00020821,2]
[321964277,1712652648669,-500.0,0.00020821,2]
[321964278,1712652648679,-2495.91,0.00020821,2]
[321964279,1712652648689,-500.0,0.00020821,2]
[321964280,1712652648699,-2495.81,0.00020821,2]
[321964281,1712652648708,-500.0,0.00020821,2]
[321964282,1712652648717,-557.09837733,0.00020821,2]
[321964283,1712652648727,-500.0,0.00020821,2]
[321964284,1712652648736,-500.0,0.00020821,2]
[321964285,1712652648746,-500.0,0.00020821,2]
[321964286,1712652648756,-500.0,0.00020821,2]
[321964287,1712652648777,-1977.93,0.00020821,2]
[321964288,1712652648786,-500.0,0.00020821,2]
[321964289,1712652648795,-3895.42,0.00020821,2]
[321964290,1712652648804,-1767.6,0.00020821,2]
[321964291,1712652648813,-18901.14,0.00020821,2]
[321964292,1712652648824,-1215.14,0.00020821,2]
[321964293,1712652648834,-500.0,0.00020821,2]
[321964294,1712652648843,-772.72,0.00020821,2]
[321964295,1712652648852,-3302.22,0.00020821,2]
[321964296,1712652648862,-3615.10243942,0.00020821,2]
[321964297,1712652649626,-3401.47756058,0.00020821,2]
[321964298,1712652649636,-500.0,0.00020821,2]
[321964299,1712652649646,-500.0,0.00020821,2]
[321964300,1712652649657,-500.0,0.00020821,2]
[321964301,1712652649669,-1788.96,0.00020821,2]
[321964302,1712652649681,-500.0,0.00020821,2]
[321964303,1712652649694,-8091.05,0.00020821,2]
[321964304,1712652649703,-3092.05,0.00020821,2]
[321964305,1712652649714,-4650.02,0.00020821,2]
[321964306,1712652649724,-3290.28,0.00020821,2]
[321964307,1712652649734,-500.0,0.00020821,2]
[321964308,1712652649744,-5389.81,0.00020821,2]
[321964309,1712652649754,-599.557145,0.00020821,2]
[321964310,1712652649765,-500.0,0.00020821,2]
[321964311,1712652649774,-500.0,0.00020821,2]
[321964312,1712652649784,-534.2,0.00020821,2]
[321964313,1712652649793,-663.54,0.00020821,2]
[321964314,1712652649802,-3239.44,0.00020821,2]
[321964315,1712652649812,-500.0,0.00020821,2]
[321964316,1712652649821,-1851.0,0.00020821,2]
[321964317,1712652649832,-3321.85,0.00020821,2]
[321964318,1712652649842,-3513.39,0.00020821,2]
[321964319,1712652649852,-6209.7,0.00020821,2]
[321964320,1712652649863,-500.0,0.00020821,2]
[321964321,1712652649873,-4692.55,0.00020821,2]
[321964322,1712652649883,-195.46355796,0.00020821,2]
[321964323,1712652649894,-3167.03,0.00020821,2]
[321964324,1712652649904,-500.0,0.00020821,2]
[321964325,1712652649914,-500.0,0.00020821,2]
[321964326,1712652649924,-575.24,0.00020821,2]
[321964327,1712652649934,-507.9,0.00020821,2]
[321964328,1712652649944,-748.75,0.00020821,2]
[321964329,1712652649954,-5238.28685076,0.00020821,2]
[321964330,1712652649967,-1465.15290001,0.00020821,2]
[321964331,1712652649980,-1781.36417555,0.00020821,2]
[321964332,1712652649992,-1770.73467653,0.00020821,2]
[321964333,1712652650156,-8710.36985001,0.00020821,2]
[321964334,1712652650203,-11566.12154714,0.00020821,2]
[321964335,1712652650213,-506.94,0.00020821,2]
[321964336,1712652650222,-1263.75,0.00020821,2]
[321964337,1712652650231,-3001.35,0.00020821,2]
[321964338,1712652650241,-500.0,0.00020821,2]
[321964339,1712652650252,-6607.18,0.00020821,2]
[321964340,1712652650261,-6394.34,0.00020821,2]
[321964341,1712652650272,-500.0,0.00020821,2]
[321964342,1712652650281,-2071.33,0.00020821,2]
[321964343,1712652650290,-500.0,0.00020821,2]
[321964344,1712652650299,-670.62,0.00020821,2]
[321964345,1712652650309,-3155.59,0.00020821,2]
[321964346,1712652650319,-500.0,0.00020821,2]
[321964347,1712652650329,-8358.38,0.00020821,2]
[321964348,1712652650339,-500.0,0.00020821,2]
[321964349,1712652650349,-500.0,0.00020821,2]
[321964350,1712652650359,-2681.32,0.00020821,2]
[321964351,1712652650369,-487.06219286,0.00020821,2]
[321964352,1712652651420,-292.09152197,0.0002082,2]
[321964353,1712652651590,-1910.61208249,0.0002082,2]
[321964354,1712652651600,-155.0,0.0002082,2]
[321964355,1712652651610,-489.41780714,0.00020821,2]
[321964356,1712652651619,-500.0,0.00020821,2]
[321964357,1712652651628,-500.0,0.00020821,2]
[321964358,1712652651638,-1545.51,0.00020821,2]
[321964359,1712652651649,-2350.81,0.00020821,2]
[321964360,1712652651659,-9075.24,0.00020821,2]
[321964361,1712652651669,-3410.02,0.00020821,2]
[321964362,1712652651679,-500.0,0.00020821,2]
[321964363,1712652651689,-1695.0,0.00020821,2]
[321964364,1712652651698,-4127.33,0.00020821,2]
[321964365,1712652651708,-639.10920485,0.00020821,2]
[321964366,1712652651717,-5695.88,0.00020821,2]
[321964367,1712652651726,-825.76,0.00020821,2]
[321964368,1712652651737,-5457.48,0.00020821,2]
[321964369,1712652651747,-2270.48,0.00020821,2]